bitfinex-derivatives/quotes_SOLF0:USTF0_20260213
["timestamp","ask_amount","ask_price","bid_price","bid_amount"]
[1770998900735,10.7232,83.985,83.92,8.79511261]
[1770998900936,8.79511261,84.0,83.9,8.79511261]
[1770998901137,166.8061,83.985,83.888,61.85782662]
[1770998901338,10.7275,83.951,83.888,61.85782662]
[1770998901534,119.28,83.96,83.901,61.80153145]
[1770998901740,10.7227,83.989,83.92,8.79511261]
[1770998901946,119.3,83.988,83.92,70.59664406]
[1770998902345,119.32,83.989,83.92,70.59664406]
[1770998903050,119.32,83.989,83.93,8.7563293]
[1770998903548,8.7563293,84.05,83.95,8.7563293]
[1770998903850,119.2,84.049,83.95,8.7563293]
[1770998904851,8.7563293,84.02,83.92,8.7563293]
[1770998905047,8.7563293,84.02,83.908,61.79780636]
[1770998905048,8.7563293,84.0,83.908,61.79780636]
[1770998905248,10.7251,83.97,83.9,8.7563293]
[1770998905555,8.7563293,83.98,83.886,61.79780636]
[1770998905850,8.7563293,83.98,83.81,167.1516]
[1770998905851,8.7563293,83.96,83.863,61.78847884]
[1770998906047,119.9,83.959,83.863,61.78847884]
[1770998906242,166.8651,83.955,83.863,61.78847884]
[1770998906448,119.9,83.959,83.85,70.5444236]
[1770998906658,166.8287,83.973,83.85,70.5444236]
[1770998906659,120.18,83.958,83.85,70.5444236]
[1770998907045,8.7563293,83.96,83.852,61.7880943]
[1770998907255,8.7563293,83.96,83.87,8.7563293]
[1770998907256,120.22,83.959,83.87,8.7563293]
[1770998907554,120.22,83.959,83.852,61.7880943]
[1770998907748,8.7563293,83.96,83.852,61.7880943]
[1770998907942,10.7306,83.927,83.852,61.7880943]
[1770998908150,8.7563293,83.99,83.89,8.7563293]
[1770998908355,120.4,83.989,83.89,69.75707241]
[1770998908654,120.46,83.988,83.91,8.7563293]
[1770998908854,120.46,83.988,83.89,69.75707241]
[1770998908855,120.6,83.987,83.89,69.75707241]
[1770998909153,120.78,83.986,83.893,60.99814356]
[1770998910151,120.78,83.986,83.901,60.99202312]
[1770998910353,121.32,83.985,83.901,60.99202312]
[1770998911158,10.7263,83.961,83.901,60.99202312]
[1770998911450,238.46,84.0,83.92,8.7563293]
[1770998911857,121.68,83.999,83.903,60.76374516]
[1770998912250,10.7255,83.967,83.905,10.7333]
[1770998912449,121.98,83.966,83.903,60.76374516]
[1770998913055,10.7285,83.944,83.903,60.76374516]
[1770998913252,10.7285,83.944,83.88,69.51926875]
[1770998913651,10.7285,83.944,83.882,71.44943857]
[1770998913849,122.0,83.943,83.882,60.71313857]
[1770998914051,166.8075,83.984,83.882,60.71313857]
[1770998914247,21.444,83.995,83.882,60.71313857]
[1770998914453,10.7302,83.93,83.882,60.71313857]
[1770998914758,122.12,83.936,83.882,60.71313857]
[1770998915049,122.18,83.935,83.86,8.7563293]
[1770998915254,122.24,83.934,83.86,8.7563293]
[1770998915446,10.7341,83.9,83.859,60.71231828]
[1770998915846,122.24,83.933,83.859,60.71231828]
[1770998916048,10.7322,83.914,83.859,60.71231828]
[1770998916446,122.24,83.933,83.859,60.71231828]
[1770998916649,166.8648,83.955,83.86,8.7563293]
[1770998916850,122.28,83.954,83.86,8.7563293]
[1770998917649,10.7335,83.905,83.86,8.7563293]
[1770998918054,10.7335,83.905,83.859,60.71231828]
[1770998918358,122.72,83.906,83.859,60.71231828]
[1770998918658,166.8016,83.987,83.837,270.40454646]
[1770998918659,10.7305,83.928,83.863,14.5572469]
[1770998919056,122.78,83.93,83.863,14.5572469]
[1770998919553,10.7307,83.926,83.866,14.5572469]
[1770998919955,10.7307,83.926,83.868,10.738]
[1770998920148,10.7307,83.926,83.869,14.5572469]
[1770998920353,10.7307,83.926,83.88,8.7563293]
[1770998920551,10.7292,83.938,83.881,14.5572469]
[1770998920751,122.94,83.946,83.881,14.5572469]
[1770998921563,10.7292,83.938,83.882,10.7362]
[1770998921759,122.94,83.946,83.881,14.5572469]
[1770998921960,15.60013903,83.945,83.881,14.5572469]
[1770998922854,15.60013903,83.943,83.86,8.7563293]
[1770998923051,8.7563293,83.96,83.843,14.5572469]
[1770998923052,10.7337,83.903,83.843,14.5572469]
[1770998923255,15.60013903,83.899,83.8,23.3135762]
[1770998923554,10.7381,83.868,83.811,10.7453]
[1770998923959,15.60013903,83.897,83.801,14.5572469]
[1770998924157,10.739,83.861,83.803,10.7464]
[1770998924358,134.119,83.861,83.803,10.7464]
[1770998924756,134.119,83.861,83.801,14.5572469]
[1770998924757,10.7402,83.852,83.801,14.5572469]
[1770998924961,123.38,83.861,83.801,14.5572469]
[1770998925162,123.38,83.861,83.811,14.5572469]
[1770998925362,123.38,83.861,83.76,8.7563293]
[1770998925363,15.60013903,83.939,83.831,14.5572469]
[1770998925563,15.60013903,83.937,83.831,14.5572469]
[1770998925856,15.60013903,83.937,83.85,8.7563293]
[1770998926053,15.60013903,83.937,83.843,10.7412]
[1770998926255,15.60013903,83.935,83.843,10.7412]
[1770998926660,166.9745,83.9,83.783,14.5572469]
[1770998926859,166.9745,83.9,83.735,167.3024]
[1770998926860,15.60013903,83.889,83.791,14.5572469]
[1770998927064,8.7563293,83.87,83.791,14.5572469]
[1770998927265,10.739,83.861,83.809,10.7456]
[1770998927567,123.8,83.86,83.791,14.5572469]
[1770998927861,15.60013903,83.863,83.791,14.5572469]
[1770998928167,10.7434,83.827,83.771,14.5572469]
[1770998929866,10.7444,83.819,83.771,14.5572469]
[1770998930262,15.60013903,83.849,83.771,14.5572469]
[1770998930461,124.0,83.835,83.771,14.5572469]
[1770998931463,15.60013903,83.849,83.771,14.5572469]
[1770998931464,123.98,83.836,83.771,14.5572469]
[1770998931862,8.7563293,83.83,83.75,14.5572469]
[1770998932067,10.744,83.822,83.769,10.7507]
[1770998932368,8.7563293,83.87,83.74,8.7563293]
[1770998932369,15.60013903,83.842,83.77,14.5572469]
[1770998932569,15.60013903,83.829,83.741,14.5572469]
[1770998932769,10.7452,83.813,83.758,10.7521]
[1770998933070,10.7452,83.813,83.743,14.5572469]
[1770998933071,124.16,83.825,83.743,14.5572469]
[1770998933673,124.16,83.825,83.74,8.7563293]
[1770998933674,10.7462,83.805,83.752,14.5572469]
[1770998934063,10.7451,83.814,83.753,10.7527]
[1770998934265,15.60013903,83.829,83.753,14.5572469]
[1770998934460,124.16,83.842,83.761,14.5572469]
[1770998934659,139.76013903,83.842,83.771,10.7505]
[1770998935060,15.60013903,83.841,83.761,14.5572469]
[1770998935564,15.60013903,83.841,83.778,10.7496]
[1770998935962,15.60013903,83.868,83.781,14.5572469]
[1770998936177,15.60013903,83.859,83.781,14.5572469]
[1770998936467,15.60013903,83.857,83.781,14.5572469]
[1770998936668,69.84013903,83.858,83.781,14.5572469]
[1770998936972,10.7422,83.836,83.783,10.749]
[1770998937263,8.7563293,83.88,83.784,14.5572469]
[1770998937467,8.7563293,83.88,83.786,14.5572469]
[1770998937664,10.7375,83.873,83.815,14.5572469]
[1770998938061,8.7563293,83.92,83.824,14.5572469]
[1770998938466,8.7563293,83.92,83.826,14.5572469]
[1770998938668,10.7308,83.917,83.855,14.5572469]
[1770998938873,124.22,83.934,83.855,14.5572469]
[1770998939060,15.60013903,83.933,83.855,14.5572469]
[1770998939366,15.60013903,83.933,83.858,14.5572469]
[1770998940269,10.7318,83.909,83.858,14.5572469]
[1770998940460,15.60013903,83.933,83.858,14.5572469]
[1770998941463,16.83924209,83.954,83.877,17.77422988]
[1770998941859,8.7563293,83.97,83.881,17.77422988]
[1770998942058,16.83924209,83.949,83.861,17.77422988]
[1770998942372,8.7563293,84.0,83.842,17.77422988]
[1770998942373,16.83924209,83.929,83.842,17.77422988]
[1770998942571,8.7563293,83.91,83.842,17.77422988]
[1770998943069,16.83924209,83.929,83.842,17.77422988]
[1770998943660,10.7309,83.916,83.845,10.7399]
[1770998943860,10.7309,83.916,83.846,17.77422988]
[1770998944963,10.7309,83.916,83.85,17.77422988]
[1770998945365,8.7563293,83.95,83.862,17.77422988]
[1770998945572,16.83924209,83.953,83.862,17.77422988]
[1770998945762,16.83924209,83.919,83.826,17.77422988]
[1770998946077,10.7324,83.904,83.838,10.7408]
[1770998946272,16.83924209,83.919,83.828,17.77422988]
[1770998946467,16.83924209,83.939,83.84,17.77422988]
[1770998946674,16.83924209,83.939,83.842,17.77422988]
[1770998947269,10.7312,83.914,83.853,17.77422988]
[1770998948376,10.7312,83.914,83.856,17.77422988]
[1770998949280,10.7299,83.924,83.869,17.77422988]
[1770998949688,16.83924209,83.939,83.869,17.77422988]
[1770998949878,10.7301,83.922,83.869,17.77422988]
[1770998950782,16.83924209,83.963,83.869,17.77422988]
[1770998950983,16.83924209,83.963,83.831,129.76]
[1770998950984,16.83924209,83.984,83.881,17.77422988]
[1770998951184,16.83924209,83.984,83.883,17.77422988]
[1770998951485,16.83924209,83.984,83.885,17.77422988]
[1770998951681,16.83924209,83.969,83.887,17.77422988]
[1770998951986,16.83924209,83.949,83.887,17.77422988]
[1770998952385,10.7286,83.934,83.887,17.77422988]
[1770998952686,16.83924209,83.949,83.887,17.77422988]
[1770998953076,16.83924209,83.949,83.847,129.66]
[1770998953077,16.83924209,83.929,83.834,10.43694322]
[1770998953275,16.83924209,83.929,83.836,17.77422988]
[1770998953481,10.7299,83.924,83.864,17.77422988]
[1770998953688,8.7563293,83.94,83.864,17.77422988]
[1770998953882,16.83924209,83.95,83.866,17.77422988]
[1770998954080,16.83924209,83.95,83.838,139.95694322]
[1770998954081,16.83924209,83.95,83.871,17.77422988]
[1770998954278,16.83924209,83.95,83.873,17.77422988]
[1770998954581,16.83924209,83.95,83.872,8.76613588]
[1770998954582,16.83924209,83.95,83.875,17.77422988]
[1770998954987,16.83924209,83.939,83.875,17.77422988]
[1770998955183,16.83924209,83.939,83.85,8.7563293]
[1770998955184,16.83924209,83.939,83.852,17.77422988]
[1770998955388,16.83924209,83.939,83.854,17.77422988]
[1770998955586,8.7563293,83.96,83.856,17.77422988]
[1770998955587,25.59557139,83.96,83.856,17.77422988]
[1770998955790,25.59557139,83.96,83.858,17.77422988]
[1770998955985,16.83924209,83.959,83.86,17.77422988]
[1770998956187,16.83924209,83.959,83.862,17.77422988]
[1770998956385,16.83924209,83.959,83.864,17.77422988]
[1770998956587,16.83924209,83.959,83.866,17.77422988]
[1770998956786,16.83924209,83.959,83.868,17.77422988]
[1770998956986,16.83924209,83.959,83.87,17.77422988]
[1770998957188,16.83924209,83.959,83.85,8.7563293]
[1770998957189,10.7291,83.93,83.872,17.77422988]
[1770998957489,16.83924209,83.959,83.872,17.77422988]
[1770998958480,10.7298,83.925,83.872,17.77422988]
[1770998959189,10.7285,83.935,83.875,17.77422988]
[1770998959583,10.7295,83.927,83.88,10.7355]
[1770998959779,10.7295,83.927,83.875,17.77422988]
[1770998960188,10.7295,83.927,83.88,10.7355]
[1770998960385,16.83924209,83.94,83.875,17.77422988]
[1770998960590,16.83924209,83.94,83.851,17.77422988]
[1770998960793,16.83924209,83.94,83.853,17.77422988]
[1770998960994,10.7293,83.928,83.875,17.77422988]
[1770998961397,16.83924209,83.923,83.856,17.77422988]
[1770998961590,16.83924209,83.923,83.849,10.7394]
[1770998961591,16.83924209,83.909,83.82,8.7563293]
[1770998961893,16.83924209,83.929,83.841,17.77422988]
[1770998962097,16.83924209,83.929,83.843,17.77422988]
[1770998962298,10.732,83.908,83.845,17.77422988]
[1770998962593,16.83924209,83.929,83.845,17.77422988]
[1770998962799,16.83924209,83.909,83.825,17.77422988]
[1770998963099,16.83924209,83.899,83.825,17.77422988]
[1770998963500,16.83924209,83.918,83.837,17.77422988]
[1770998963694,16.83924209,83.918,83.82,8.78047113]
[1770998963695,16.83924209,83.918,83.839,17.77422988]
[1770998964000,10.7337,83.894,83.842,17.77422988]
[1770998964402,16.83924209,83.918,83.844,17.77422988]
[1770998965797,10.7344,83.889,83.844,17.77422988]
[1770998965998,16.83924209,83.918,83.828,10.742]
[1770998966201,16.83924209,83.899,83.822,17.77422988]
[1770998966401,10.7389,83.854,83.801,17.77422988]
[1770998966698,8.78047113,83.86,83.801,17.77422988]
[1770998966997,16.83924209,83.869,83.801,17.77422988]
[1770998967302,10.7389,83.854,83.801,17.77422988]
[1770998967601,16.83924209,83.849,83.78,17.77422988]
[1770998968099,8.78047113,83.87,83.782,17.77422988]
[1770998968294,166.9128,83.923,83.801,17.77422988]
[1770998968295,25.61971322,83.89,83.801,17.77422988]
[1770998968490,16.83924209,83.889,83.803,17.77422988]
[1770998968802,16.83924209,83.869,83.803,17.77422988]
[1770998969703,16.83924209,83.888,83.816,17.77422988]
[1770998969909,16.83924209,83.869,83.805,17.77422988]
[1770998970204,16.83924209,83.889,83.815,17.77422988]
[1770998970396,16.83924209,83.889,83.793,17.77422988]
[1770998970397,16.83924209,83.869,83.793,17.77422988]
[1770998970899,10.7408,83.839,83.793,17.77422988]
[1770998971304,10.7419,83.831,83.771,19.48638277]
[1770998971500,10.7419,83.831,83.772,8.78872308]
[1770998971804,10.7419,83.831,83.773,8.78872308]
[1770998972005,10.7419,83.831,83.773,19.48638277]
[1770998972212,10.7429,83.823,83.773,19.48638277]
[1770998972502,19.39078219,83.849,83.773,19.48638277]
[1770998973397,10.743,83.822,83.773,19.48638277]
[1770998973794,19.39078219,83.869,83.774,8.78293432]
[1770998974098,10.7416,83.833,83.773,19.48638277]
[1770998974405,19.39078219,83.845,83.773,19.48638277]
[1770998974406,10.7427,83.824,83.773,19.48638277]
[1770998974801,19.39078219,83.845,83.724,128.86]
[1770998974802,8.78047113,83.86,83.781,19.48638277]
[1770998975006,19.39078219,83.859,83.781,19.48638277]
[1770998975406,19.39078219,83.839,83.76,19.48638277]
[1770998975604,10.7435,83.818,83.761,28.26784957]
[1770998975801,19.39078219,83.839,83.763,19.48638277]
[1770998975997,19.39078219,83.859,83.77,8.78047113]
[1770998976205,19.39078219,83.859,83.771,19.48638277]
[1770998976596,10.7412,83.836,83.782,19.48638277]
[1770998976802,19.39078219,83.859,83.782,19.48638277]
[1770998977002,19.24301842,83.879,83.791,19.34852692]
[1770998977605,19.24301842,83.859,83.771,19.34852692]
[1770998977797,19.24301842,83.839,83.771,19.34852692]
[1770998978200,10.742,83.829,83.772,10.7493]
[1770998978400,19.24301842,83.839,83.771,19.34852692]
[1770998979808,10.7432,83.82,83.771,19.34852692]
[1770998980500,10.7444,83.811,83.753,10.7517]
[1770998980701,19.24301842,83.839,83.753,10.7517]
[1770998980901,19.24301842,83.819,83.753,10.7517]
[1770998981410,10.746,83.799,83.751,19.34852692]
[1770998981607,19.24301842,83.819,83.751,19.34852692]
[1770998983011,10.7455,83.802,83.751,19.34852692]
[1770998983207,10.7455,83.802,83.751,12.34852692]
[1770998983411,19.24301842,83.819,83.72,8.78047113]
[1770998983612,19.24301842,83.819,83.721,21.78914011]
[1770998983810,10.7475,83.787,83.733,10.7543]
[1770998984011,19.24301842,83.819,83.74,8.78047113]
[1770998984213,19.24301842,83.819,83.741,8.78276907]
[1770998984511,19.24301842,83.819,83.74,8.78047113]
[1770998984708,19.24301842,83.819,83.741,21.7822057]
[1770998984912,19.24301842,83.839,83.76,8.78047113]
[1770998985108,19.24301842,83.839,83.762,19.34852692]
[1770998985409,10.7409,83.838,83.786,10.7475]
[1770998985610,10.7409,83.838,83.781,19.34852692]
[1770998985611,10.7409,83.838,83.787,19.34852692]
[1770998985906,10.7419,83.83,83.787,19.34852692]
[1770998986309,19.24301842,83.839,83.768,19.34852692]
[1770998986512,19.24301842,83.859,83.782,19.34852692]
[1770998986709,19.24301842,83.879,83.791,19.34852692]
[1770998987105,10.7384,83.857,83.807,19.34852692]
[1770998987312,19.24301842,83.879,83.807,19.34852692]
[1770998987710,10.7372,83.867,83.819,19.34852692]
[1770998989810,10.7362,83.875,83.82,10.7432]
[1770998990010,19.24301842,83.879,83.82,10.7432]
[1770998990216,19.24301842,83.879,83.8,19.34852692]
[1770998990417,19.24301842,83.879,83.824,10.7426]
[1770998990621,19.24301842,83.879,83.8,19.34852692]
[1770998990921,10.7377,83.863,83.816,10.7436]
[1770998991221,19.24301842,83.898,83.8,19.34852692]
[1770998991419,19.24301842,83.898,83.81,8.78047113]
[1770998991620,19.24301842,83.898,83.811,19.34852692]
[1770998992616,10.7356,83.879,83.824,19.34852692]
[1770998993018,19.24301842,83.898,83.824,19.34852692]
[1770998993717,10.7365,83.873,83.827,10.7422]
[1770998994022,10.7365,83.873,83.824,19.34852692]
[1770998994423,10.7365,83.873,83.825,10.7425]
[1770998994717,19.24301842,83.88,83.824,19.34852692]
[1770998995310,19.24301842,83.88,83.812,10.7441]
[1770998995512,10.7385,83.857,83.812,10.7441]
[1770998995714,19.24301842,83.879,83.806,19.34852692]
[1770998996422,10.7393,83.851,83.806,19.34852692]
[1770998996624,19.24301842,83.879,83.806,19.34852692]
[1770998996820,10.7403,83.843,83.806,19.34852692]
[1770998997024,10.7403,83.843,83.754,13.87696886]
[1770998997025,19.24301842,83.859,83.787,19.34852692]
[1770998997523,40.72011842,83.857,83.771,19.34852692]
[1770998997734,19.24301842,83.856,83.773,19.34852692]
[1770998998024,19.24301842,83.856,83.77,8.78047113]
[1770998998025,10.7415,83.834,83.789,10.7471]
[1770998998216,10.7415,83.834,83.775,19.34852692]
[1770998998416,10.7402,83.844,83.795,10.7464]
[1770998998623,10.7402,83.844,83.77,8.78047113]
[1770998998624,10.7402,83.844,83.796,19.34852692]
[1770998999022,10.7392,83.852,83.805,19.34852692]
[1770998999227,19.24301842,83.876,83.805,19.34852692]
[1770998999727,10.7375,83.865,83.815,19.34852692]
[1770999000117,19.24301842,83.915,83.821,19.34852692]
[1770999000323,10.7341,83.891,83.841,30.08892692]
[1770999000525,10.7341,83.891,83.842,8.79682998]
[1770999000723,19.56918318,83.899,83.824,13.0]
[1770999000932,10.7383,83.859,83.821,20.13521165]
[1770999001324,144.04918318,83.899,83.8,8.78047113]
[1770999001325,19.56918318,83.899,83.824,10.7427]
[1770999001527,19.56918318,83.899,83.823,20.13521165]
[1770999001827,19.56918318,83.879,83.802,20.13521165]
[1770999002336,19.56918318,83.878,83.802,20.13521165]
[1770999002738,10.7395,83.849,83.802,20.13521165]
[1770999002924,19.56918318,83.878,83.802,20.13521165]
[1770999003736,19.56918318,83.878,83.751,13.87696886]
[1770999003737,19.56918318,83.859,83.782,20.13521165]
[1770999004142,10.7434,83.827,83.782,20.13521165]
[1770999004435,19.56918318,83.839,83.782,20.13521165]
[1770999004634,19.56918318,83.839,83.776,10.7498]
[1770999004834,19.56918318,83.839,83.763,30.88661165]
[1770999005137,19.56918318,83.839,83.763,20.13521165]
[1770999005337,19.56918318,83.819,83.735,10.43694322]
[1770999005530,19.56918318,83.817,83.72,8.78047113]
[1770999005729,19.56918318,83.799,83.72,8.78047113]
[1770999006138,19.56918318,83.799,83.724,10.7565]
[1770999006930,10.7486,83.786,83.724,10.7565]
[1770999007834,19.56918318,83.776,83.7,8.78047113]
[1770999008040,19.56918318,83.759,83.697,20.13521165]
[1770999008339,10.7554,83.734,83.677,20.13521165]
[1770999008941,10.7554,83.734,83.642,10.43694322]
[1770999008942,19.56918318,83.739,83.658,20.13521165]
[1770999009140,8.78047113,83.72,83.658,20.13521165]
[1770999009339,8.78047113,83.72,83.597,20.9047055]
[1770999009340,19.56918318,83.699,83.616,20.13521165]
[1770999009542,8.78047113,83.71,83.627,20.13521165]
[1770999009745,19.56918318,83.719,83.631,20.13521165]
[1770999010639,10.7575,83.717,83.633,20.13521165]
[1770999010838,19.56918318,83.719,83.633,20.13521165]
[1770999011347,19.56918318,83.739,83.645,20.13521165]
[1770999011636,19.56918318,83.739,83.651,20.13521165]
[1770999012443,19.56918318,83.739,83.671,20.13521165]
[1770999012638,19.56918318,83.739,83.65,8.78047113]
[1770999012639,19.56918318,83.719,83.65,20.13521165]
[1770999012835,10.7592,83.704,83.65,20.13521165]
[1770999013138,19.56918318,83.719,83.641,20.13521165]
[1770999013342,10.7594,83.702,83.641,20.13521165]
[1770999013542,19.56918318,83.719,83.641,20.13521165]
[1770999013844,19.48557273,83.739,83.661,20.13521165]
[1770999014041,19.48557273,83.739,83.667,20.13521165]
[1770999014543,19.48557273,83.739,83.671,20.13521165]
[1770999014739,10.7548,83.738,83.671,20.13521165]
[1770999014944,8.78047113,83.71,83.627,20.13521165]
[1770999015141,8.78047113,83.69,83.626,2.792e-05]
[1770999015342,8.78047113,83.67,83.626,2.792e-05]
[1770999015641,8.78047113,83.73,83.631,20.13521165]
[1770999015841,19.56918318,83.729,83.633,20.13521165]
[1770999016545,10.7565,83.725,83.651,20.13521165]
[1770999016845,30.32568318,83.725,83.651,20.13521165]
[1770999017344,19.56918318,83.725,83.654,20.13521165]
[1770999018038,19.56918318,83.725,83.658,20.13521165]
[1770999018240,145.12918318,83.745,83.66,8.78047113]
[1770999018439,19.56918318,83.744,83.661,20.13521165]
[1770999018935,19.56918318,83.732,83.661,30.89991165]
[1770999019337,19.56918318,83.732,83.662,20.13521165]
[1770999020041,19.56918318,83.732,83.666,10.764]
[1770999020345,19.56918318,83.732,83.637,128.38]
[1770999020346,19.56918318,83.732,83.667,20.13521165]
[1770999020746,10.7532,83.751,83.671,20.13521165]
[1770999021241,10.756,83.729,83.671,20.13521165]
[1770999021446,19.56918318,83.728,83.651,20.13521165]
[1770999021849,10.7563,83.727,83.654,10.7654]
[1770999022044,10.7563,83.727,83.654,30.90061165]
[1770999022239,19.56918318,83.726,83.655,20.13521165]
[1770999022448,10.759,83.705,83.632,20.13521165]
[1770999022742,8.78047113,83.68,83.626,2.792e-05]
[1770999022951,10.7653,83.657,83.626,2.792e-05]
[1770999023149,19.56918318,83.659,83.626,2.792e-05]
[1770999023544,28.34965431,83.68,83.626,2.792e-05]
[1770999023739,19.56918318,83.679,83.626,2.792e-05]
[1770999024153,10.7663,83.649,83.626,2.792e-05]
[1770999024350,28.34965431,83.66,83.626,2.792e-05]
[1770999024548,19.56918318,83.659,83.626,2.792e-05]
[1770999025549,10.7653,83.657,83.626,2.792e-05]
[1770999025747,19.56918318,83.659,83.626,2.792e-05]
[1770999026351,19.56918318,83.649,83.626,2.792e-05]
[1770999026551,19.56918318,83.649,83.574,20.13521165]
[1770999026845,19.56918318,83.629,83.545,20.13521165]
[1770999027751,19.56918318,83.629,83.53,8.82958283]
[1770999027752,19.56918318,83.629,83.551,20.13521165]
[1770999028153,10.7689,83.628,83.564,10.7771]
[1770999028351,10.7689,83.628,83.565,20.13521165]
[1770999028545,19.56918318,83.629,83.565,20.13521165]
[1770999029145,19.56918318,83.629,83.567,10.7767]
[1770999029549,8.82958283,83.65,83.565,20.13521165]
[1770999029753,19.56918318,83.649,83.565,20.13521165]
[1770999029951,19.56918318,83.649,83.55,8.82958283]
[1770999029952,10.7671,83.642,83.576,10.7756]
[1770999030148,19.56918318,83.641,83.57,28.96479448]
[1770999030451,19.56918318,83.641,83.57,20.13521165]
[1770999030754,125.96,83.66,83.571,20.13521165]
[1770999030953,19.92183546,83.662,83.571,20.13521165]
[1770999031457,30.68673546,83.66,83.601,10.7724]
[1770999031653,19.92183546,83.66,83.571,20.13521165]
[1770999032253,19.92183546,83.649,83.571,20.13521165]
[1770999032654,19.92183546,83.669,83.593,21.06154465]
[1770999032956,147.5367,83.711,83.56,8.82958283]
[1770999032957,19.92183546,83.649,83.56,8.82958283]
[1770999033146,19.92183546,83.629,83.553,21.06154465]
[1770999034353,19.92183546,83.629,83.54,8.82958283]
[1770999034556,19.92183546,83.629,83.541,21.06154465]
[1770999034860,10.7702,83.618,83.557,10.778]
[1770999035256,10.7715,83.609,83.545,31.84114465]
[1770999035565,10.7715,83.609,83.545,21.06154465]
[1770999036157,10.7715,83.609,83.553,10.7785]
[1770999036363,10.7699,83.621,83.554,21.06154465]
[1770999036563,19.92183546,83.629,83.561,19.39207412]
[1770999037069,19.92183546,83.629,83.581,10.7748]
[1770999037560,27.94131958,83.65,83.561,19.39207412]
[1770999038457,10.7667,83.645,83.59,10.7737]
[1770999039268,10.7656,83.654,83.599,10.7725]
[1770999039463,10.7656,83.654,83.583,19.39207412]
[1770999039667,27.94131958,83.67,83.583,19.39207412]
[1770999040167,10.7637,83.669,83.614,10.7706]
[1770999040575,10.7621,83.681,83.624,10.7694]
[1770999040872,19.11173675,83.679,83.603,19.39207412]
[1770999041659,19.11173675,83.679,83.583,19.39207412]
[1770999042064,19.11173675,83.659,83.583,19.39207412]
[1770999042571,10.7655,83.655,83.583,19.39207412]
[1770999043875,10.7655,83.655,83.603,10.772]
[1770999045075,19.11173675,83.681,83.609,19.39207412]
[1770999045272,19.11173675,83.709,83.621,19.39207412]
[1770999045470,19.11173675,83.709,83.62,8.82958283]
[1770999045471,19.11173675,83.709,83.641,19.39207412]
[1770999045666,19.11173675,83.709,83.62,28.22165695]
[1770999045974,19.11173675,83.709,83.621,19.39207412]
[1770999047973,10.7619,83.683,83.621,19.39207412]
[1770999048571,21.5135,83.723,83.61,8.82958283]
[1770999048572,19.11173675,83.689,83.61,8.82958283]
[1770999049377,10.762,83.682,83.63,10.7686]
[1770999049570,19.11173675,83.681,83.61,8.82958283]
[1770999050276,8.82958283,83.7,83.61,8.82958283]
[1770999050277,19.11173675,83.677,83.621,10.7698]
[1770999051173,10.7637,83.669,83.612,10.7709]
[1770999051476,19.11173675,83.668,83.583,19.39207412]
[1770999051681,19.11173675,83.668,83.57,8.82958283]
[1770999051682,19.11173675,83.668,83.585,19.39207412]
[1770999051881,19.11173675,83.668,83.586,8.83264817]
[1770999052084,10.7657,83.654,83.603,10.7721]
[1770999053785,10.7645,83.663,83.611,10.771]
[1770999053986,19.11173675,83.668,83.591,19.39207412]
[1770999054188,19.11173675,83.668,83.593,19.39207412]
[1770999054389,8.82958283,83.69,83.595,19.39207412]
[1770999054682,19.11173675,83.665,83.596,8.84629804]
[1770999055376,10.7663,83.649,83.596,19.61919804]
[1770999055576,29.87803675,83.649,83.595,19.39207412]
[1770999055772,29.87803675,83.649,83.596,8.85223712]
[1770999055980,29.87803675,83.649,83.595,19.39207412]
[1770999056179,29.87803675,83.649,83.596,8.84896514]
[1770999056377,19.11173675,83.649,83.597,8.84896514]
[1770999056581,19.11173675,83.649,83.598,8.84896514]
[1770999056781,19.11173675,83.649,83.595,19.39207412]
[1770999056981,19.11173675,83.649,83.596,8.86188739]
[1770999057183,19.11173675,83.649,83.597,8.86188739]
[1770999057384,19.11173675,83.649,83.598,8.86188739]
[1770999057579,10.7672,83.642,83.599,8.86188739]
[1770999057786,10.7672,83.642,83.58,8.82958283]
[1770999057988,10.7672,83.642,83.581,8.86106764]
[1770999058190,10.7672,83.642,83.582,8.86106764]
[1770999058481,10.7672,83.642,83.58,8.82958283]
[1770999058482,10.7672,83.642,83.583,8.86106764]
[1770999058686,10.7684,83.632,83.584,8.86106764]
[1770999058886,10.7684,83.632,83.585,8.86106764]
[1770999059081,10.7684,83.632,83.586,8.86106764]
[1770999059385,10.7684,83.632,83.587,8.86106764]
[1770999059592,21.524,83.682,83.561,19.39207412]
[1770999059593,19.11173675,83.631,83.561,19.39207412]
[1770999059789,19.11173675,83.629,83.562,8.88411083]
[1770999060089,19.11173675,83.629,83.561,19.39207412]
[1770999060090,10.7709,83.613,83.563,19.66131083]